Workbook

Sheet 报价汇总
A1: 施维雅市场服务报价单
A4: 项目名称: | B4: 2017/18 1st Cycle Meeting | D4: 供应商名称:
A5: 预计完成日期: | B5: 2018, Mar 28th | D5: 供应商联系电话:
A6: 项目地点： | B6: Su Zhou | D6: 电子邮箱：
A9: 序号 | B9: 服务类目 | D9: 预算小计 | E9: 说明
A10: 1 | B10: 创意设计 | D10: =Creative创意设计!H53 -> 69724
A11: 2 | B11: 搭建制作 | D11: =Event搭建制作!I197 -> 2261182
A12: 3 | B12: Video视频 | D12: =Video视频!G43 -> 70835
B13: 不含税总计 | D13: =SUM(D10:D12) -> 2401741
A15: 增值税金额小计(CNY): | D15: =D13*0.06 -> 144104.46 | E15: 施维雅只接受6%的增值税专用税,其他税费请含进单价中
A16: 含税总计(CNY): | C16: 含税总计(CNY) | D16: =D13+D15 -> 2545845.46 | E16: 整体打折优惠至2500000元。
A18: 备注： | B18: 其他项费用总计： | D18: 47000 | E18: 施维雅采购部内部使用，请勿修改内部公式
A20: 说明:
A21: 1.此报价模板内有公式，各项服务小计都自动来自于各类目的明细表，请不要擅自修改；
A22: 2.此报价模板为报价单首页，报价时请在分项明细页填写分项合计需与首页一致；

Sheet Sheet1 (hidden)
A2: Creative | F2: Event&Production | K2: Video Production
A3: 求和项:总价 | F3: 求和项:总价 | K3: 行标签 | L3: 求和项:总价 Subtotal
A4: 大会环节 | B4: 类别 Category | C4: 汇总 | F4: 大会环节 | G4: 类别 | H4: 项目 Item | I4: 汇总 | K4: Opening video (plenary session)（大会开场视频） | L4: 0
A5: Closing ceremony | B5: 主形象设计 | C5: 0 | F5: Team Building | G5: 人员 | H5: 人员费用 | K5: Post-event video - Closing ceremony（闭幕式现场花絮视频） | L5: 0
A6: For all sessions | B6: 微信相关 | C6: 0 | F6: (空白) | G6: AV设备租赁 | H6: Camera（摄像器材） | I6: 0 | K6: Post-event video - Gala dinner（晚宴现场花絮视频） | L6: 0
A7: Gala dinner | B7: 主形象设计 | C7: 0 | H7: 灯光设备租赁 | I7: 0 | K7: Post-event video - Opening cermony（大会现场花絮剪辑视频） | L7: 0
A8: Plenary session | B8: 主形象设计 | C8: 0 | H8: 视频设备租赁 | I8: 0 | K8: Post-event video - Team building（拓展活动现场花絮视频） | L8: 0
A9: Team Building | B9: 主形象设计 | C9: 0 | H9: 音频设备租赁 | I9: 0 | K9: Top Sales Video（销售明星视频） | L9: 0
A10: (空白) | B10: 其他 | C10: 0 | G10: 差旅费用 | H10: 差旅费用 | I10: 0 | K10: Warm-up Video(大会暖场视频) | L10: 0
B11: 图片 | C11: 0 | G11: 搭建 | H11: 搭建 | I11: 0 | K11: 其他 | L11: 0
B12: 完稿 | C12: 0 | G12: 道具/礼品 | H12: 道具 | K12: 总计 | L12: 0
B13: 延展设计 | C13: 0 | H13: 礼品
A14: 总计 | C14: 0 | G14: 其他 | H14: 其他 | I14: 0
G15: 人员 | H15: 人员费用 | I15: 0
G16: 运输费用 | H16: 物料运输费用 | I16: 0
G17: 制作 | H17: KT板 | I17: 0
H18: X架 | I18: 0
H19: 横幅 | I19: 0
H20: 讲台前板 | I20: 0
H21: 热转印布拉网展架 | I21: 0
H22: 提示牌 | I22: 0
H23: 写真画面 | I23: 0
H24: 易拉宝 | I24: 0
F25: 总计 | I25: 0

Sheet Creative创意设计
A1: 施维雅报价明细-创意和设计
A4: Currency币种:CNY人民币
A5: 说明：
A6: * | B6: 施维雅只接受6%的增值税,其他税费请一律含进单价
A7: * | B7: 如有任何修改或添加行，请用红色字体显示
A8: * | B8: 请不要删除行
A9: * | B9: 所有单价都不含增值税
F11: 具体项目预算 Quotation
A12: 类别 Category | B12: 项目 Item | C12: 内容描述 Description | D12: 大会环节 | E12: 收费单位 Unit | F12: 单价 Unit Price | G12: 数量 Unit | H12: 总价 Subtotal | I12: 是否第三方费用 ?（Y/N) | J12: 人员职务 Profile | K12: Cost/ Day | L12: 人工天 days | M12: 备注
A13: 主形象设计 | B13: KV | C13: 整体活动等形象的整体全新创意；特指从无到有 | D13: Plenary session | E13: 个 | F13: 1000 | G13: 1 | H13: =F13*G13 -> 1000 | I13: N
A14: 主形象设计 | B14: Slogan/Theme | C14: 整体活动等形象的整体全新创意；特指从无到有 | D14: Plenary session | E14: 个 | F14: 500 | G14: 1 | H14: 500 | I14: N
A15: 主形象设计 | B15: KV | C15: 整体活动等形象的整体全新创意；特指从无到有 | D15: Gala dinner | E15: 个 | F15: 1000 | G15: 1 | H15: 1000 | I15: N
A16: 主形象设计 | B16: Slogan/Theme | C16: 整体活动等形象的整体全新创意；特指从无到有 | D16: Gala dinner | E16: 个 | F16: 500 | G16: 1 | H16: 500 | I16: N
A17: 主形象设计 | B17: KV | C17: 整体活动等形象的整体全新创意；特指从无到有 | D17: Team Building | E17: 个 | F17: 1000 | G17: 1 | H17: 1000 | I17: N
A18: 主形象设计 | B18: Slogan/Theme | C18: 整体活动等形象的整体全新创意；特指从无到有 | D18: Team Building | E18: 个 | F18: 500 | G18: 1 | H18: 500 | I18: N
A19: 主形象设计 | B19: KV | C19: 整体活动等形象的整体全新创意；特指从无到有 | D19: Team Building | E19: 个 | F19: 1000 | G19: 1 | H19: 1000 | I19: N
A20: 主形象设计 | B20: Slogan/Theme | C20: 整体活动等形象的整体全新创意；特指从无到有 | D20: Team Building | E20: 个 | F20: 500 | G20: 1 | H20: 500 | I20: N
A21: 主形象设计 | B21: 项目策划及文案撰写费 | C21: 整个项目活动策划创意、环节设计，包含活动流程设计及项目涉及到的所有文案类撰写 | D21: Plenary session | E21: 个 | F21: 1000 | G21: 1 | H21: 1000 | I21: N
A22: 主形象设计 | B22: 项目策划及文案撰写费 | C22: 整个项目活动策划创意、环节设计，包含活动流程设计及项目涉及到的所有文案类撰写 | D22: Gala dinner | E22: 个 | F22: 1000 | G22: 1 | H22: 1000 | I22: N
A23: 主形象设计 | B23: 项目策划及文案撰写费 | C23: 整个项目活动策划创意、环节设计，包含活动流程设计及项目涉及到的所有文案类撰写 | D23: Team Building | E23: 个 | F23: 2000 | G23: 1 | H23: 2000 | I23: N
A24: 主形象设计 | B24: 项目策划及文案撰写费 | C24: 整个项目活动策划创意、环节设计，包含活动流程设计及项目涉及到的所有文案类撰写 | D24: Team Building | E24: 个 | F24: 1000 | G24: 1 | H24: 1000 | I24: N
A25: 延展设计 | B25: 会场背景板设计 | C25: 与KV设计不同的情况下才另行收费 | E25: 个 | H25: 0
A26: 延展设计 | B26: 展板设计 | C26: 展板不分材质和类型，包含易拉宝、X型展架、KT板等设计；每项目只支付一个设计，不分规格 | E26: 个 | F26: 200 | G26: 1 | H26: 200 | I26: N
A27: 延展设计 | B27: 会议邀请函设计 | E27: 个 | H27: 0 | I27: N
A28: 延展设计 | B28: 海报设计 | E28: 个 | F28: 200 | G28: 8 | H28: 1600 | I28: N
A29: 延展设计 | B29: 桌卡三面 | C29: 每项目只支付一个设计，不分规格 | E29: 个 | F29: 600 | G29: 1 | H29: 600 | I29: N
A30: 延展设计 | B30: 桌卡 | C30: 晚宴主桌领导桌卡 | E30: 个 | F30: 200 | G30: 1 | H30: 200 | I30: N
A31: 延展设计 | B31: 横幅 | C31: 如果只涉及会议名称和logo,应免设计费 | E31: 个 | H31: 0 | I31: N
A32: 延展设计 | B32: PPT模板设计 | C32: 如果只涉及会议名称和logo,应免设计费 | E32: 套 | F32: 300 | G32: 1 | H32: 300 | I32: N
A33: 3D设计 | B33: 会议舞台设计 | C33: 整体设计 | E33: 套 | F33: 5000 | G33: 1 | H33: 5000 | I33: N
A34: 3D设计 | B34: 晚宴舞台设计 | C34: 整体设计 | E34: 套 | F34: 5000 | G34: 1 | H34: 5000 | I34: N
A35: 图片 | B35: 图片租赁 | E35: 幅 | H35: 0 | I35: N
A36: 图片 | B36: 漫画/插画 （手绘） | C36: 手绘卡通形象，例如应用在患教手册中的；游戏场景设计中的等 | E36: 个 | H36: 0 | I36: N
A37: 完稿 | B37: 4K/8K | C37: 幻灯片除外 | E37: 页 | H37: 0 | I37: N
A38: 完稿 | B38: 16K/32K | C38: 幻灯片除外 | E38: 页 | H38: 0 | I38: N
A39: 完稿 | B39: 2K/易拉宝/拉网展架/背景板 | E39: 个 | F39: 200 | G39: 1 | H39: 200 | I39: N
A40: 完稿 | B40: 大型写真喷绘 | C40: 最高不超10个小时 | E40: 个 | H40: 0 | I40: N
A41: 完稿 | B41: 图表描图 | C41: 扫描需要图片的费用 | E41: 个 | H41: 0 | I41: N
A42: 微信相关 | B42: 数据维护、录入 | D42: For all sessions | E42: 小时 | F42: 80 | G42: 48 | H42: 3840 | I42: Y
A43: 微信相关 | B43: 微信页面设计\编辑 | D43: For all sessions | E43: 页/page | F43: 2000 | G43: 6 | H43: 12000 | I43: Y
A44: 微信相关 | B44: 流程管理、平台运行维护 | D44: For all sessions | E44: 小时 | F44: 50 | G44: 480 | H44: =G44*F44 -> 24000 | I44: Y
A45: 微信相关 | B45: 微信视频生成及运营 | D45: For all sessions | E45: 项 | F45: 1000 | G45: 3 | H45: =G45*F45 -> 3000 | I45: N
H46: =G46*F46 -> 0
H47: =G47*F47 -> 0
H48: =G48*F48 -> 0
G49: 创意和设计部分总计(不含服务费和税费): | H49: =SUM(H13:H48) -> 66940
G50: 其他项费用总计： | H50: =SUM(H44:H48) -> 27000
G51: 第三方费用小计 Total 3rd party cost: | H51: =H44+H42 -> 27840
A52: 服务费 Service Fee | C52: 市场营销公司垫付的零星第三方支出，需要收取在实际发生基础上收取服务费的部分。请注意需要付款时提供第三方发票作为支持文件。 | G52: 0.1 | H52: =H51*G52 -> 2784
G53: 不含税总计: | H53: =H52+H49 -> 69724
F54: 税金 Tax | G54: 0.06 | H54: =H53*0.06 -> 4183.44

Sheet Event搭建制作
A3: 施维雅报价明细-制作搭建
A6: Currency币种:CNY人民币
A7: 说明：
A8: * | B8: 施维雅只接受6%的增值税,其他税费请一律含进单价
A9: * | B9: 如有任何修改或添加行，请用红色字体显示
A10: * | B10: 请不要删除行
A11: * | B11: 所有单价都不含增值税
G13: 具体项目预算 Quotation
A14: 类别 | B14: 项目 Item | C14: 规格 Specification | D14: 内容描述 Description | E14: 大会环节 | F14: 收费单位 Unit | G14: 单价 Unit Price | H14: 数量 Unit | I14: 总价 Subtotal | J14: 是否第三方费用?（Y/N) | K14: 备注
A15: 制作 | B15: 热转印布拉网展架 | C15: 3×3 M | D15: 展架外包装为塑料硬质包装箱；展架材质为挤压无缝铝合金管，塑料模块为ABS工程塑料；画面材质为1440DPI高光相纸喷绘，背覆PVC片。 | F15: 个 | I15: =G15*H15 -> 0 | J15: Y
A16: 制作 | B16: 热转印布拉网展架 | C16: 3×4 M | D16: 展架外包装为塑料硬质包装箱；展架材质为挤压无缝铝合金管，塑料模块为ABS工程塑料；画面材质为1441DPI高光相纸喷绘，背覆PVC片。 | F16: 个 | I16: 0 | J16: Y
A17: 制作 | B17: 热转印布拉网展架 | C17: 2x3 M | D17: 展架外包装为塑料硬质包装箱；展架材质为挤压无缝铝合金管，塑料模块为ABS工程塑料；画面材质为1442DPI高光相纸喷绘，背覆PVC片。 | F17: 个 | I17: 0 | J17: Y
A18: 制作 | B18: 易拉宝 | C18: 2x0.8 M | D18: 铝合金3节杆65mm弹簧内芯，高光相纸220克厚覆亚膜（1.2米以上宽度用双支撑杆），全铝合金底脚 | E18: For all sessions | F18: 个
A19: 制作 | B19: 易拉宝 | C19: 2×0.85 M | D19: 铝合金3节杆65mm弹簧内芯，高光相纸220克厚覆亚膜（1.3米以上宽度用双支撑杆），全铝合金底脚 | F19: 个 | I19: 0 | J19: Y
A20: 制作 | B20: 易拉宝 | C20: 2×1.2 M | D20: 铝合金3节杆65mm弹簧内芯，高光相纸220克厚覆亚膜（1.4米以上宽度用双支撑杆），全铝合金底脚 | F20: 个 | I20: 0 | J20: Y
A21: 制作 | B21: 易拉宝 | C21: 2×1.5 M | D21: 铝合金3节杆65mm弹簧内芯，高光相纸220克厚覆亚膜（1.5米以上宽度用双支撑杆），全铝合金底脚 | F21: 个 | I21: 0 | J21: Y
A22: 制作 | B22: X架 | C22: 1.6×0.6 M | D22: 展架底部材质为无缝钢管，上部为碳铅杆；画面为背胶裱pvc片 | F22: 个 | I22: 0 | J22: Y
A23: 制作 | B23: X架 | C23: 1.8×0.8M | D23: 展架底部材质为无缝钢管，上部为碳铅杆；画面为背胶裱pvc片 | F23: 个 | I23: 0 | J23: Y
A24: 制作 | B24: X架 | C24: 2×1.2 M | D24: 展架底部材质为无缝钢管，上部为碳铅杆；画面为背胶裱pvc片 | F24: 个 | I24: 0 | J24: Y
A25: 制作 | B25: 横幅 | C25: 单色 | D25: 设计免费 | F25: 8至10米 | I25: 0 | J25: Y
A26: 制作 | B26: 横幅 | C26: 4色 喷绘布 | F26: 8至10米 | I26: 0 | J26: Y
A27: 制作 | B27: 写真画面 | C27: 单面 | F27: 平米 | I27: 0 | J27: Y
A28: 制作 | B28: KT板 | C28: 单面 | F28: 平米 | I28: 0 | J28: Y
A29: 制作 | B29: 提示牌 | C29: 写真 KT板 | D29: 亚展板；1440DPI写真喷绘 | F29: 个 | I29: 0 | J29: Y
A30: 制作 | B30: 讲台前板 | C30: 写真 KT板 | D30: 亚展板；1440DPI写真喷绘 | F30: 个 | I30: 0 | J30: Y
A31: 制作 | B31: 手卡 | C31: 主持人手卡 | E31: For all sessions | F31: 张 | G31: 6 | H31: 60 | I31: =G31*H31 -> 360 | J31: Y
A32: 制作 | B32: 席位卡 | C32: 不干胶贴纸 | E32: Plenary session | F32: 个 | G32: 5 | H32: 1600 | I32: =G32*H32 -> 8000 | J32: Y
A33: 制作 | B33: 台卡 | C33: 铜版纸 | D33: 铜板纸 三面印刷 | E33: Gala dinner | F33: 张 | G33: 10 | H33: 160 | I33: =G33*H33 -> 1600 | J33: Y
A34: 制作 | B34: VIP台卡 | C34: 苏绣 | E34: Gala dinner | F34: 个 | G34: 200 | H34: 20 | I34: =G34*H34 -> 4000 | J34: Y
A35: 搭建 | B35: 搭建 | C35: 场地找平板 | D35: 18mm夹板找平场地保护；36000mm*20000mm | E35: Plenary session | F35: 平米 | G35: 80 | H35: 720 | I35: =H35*G35 -> 57600 | J35: Y
A36: 搭建 | B36: 搭建 | C36: 地毯 | D36: 展览地毯；36000mm*20000mm | E36: Plenary session | F36: 平米 | G36: 20 | H36: 726 | I36: =H36*G36 -> 14520 | J36: Y
A37: 搭建 | B37: 搭建 | C37: 全场黑丝绒遮挡 | D37: 黑丝绒加工穿不锈钢管；1100000mm*15000mmh | E37: Plenary session | F37: 平米 | G37: 70 | H37: 1650 | I37: =H37*G37 -> 115500 | J37: Y
A38: 搭建 | B38: 搭建 | C38: 天花遮挡 | D38: 黑白宝丽布（展馆室顶部高空作业）；3000000mm*3200mm | E38: Plenary session | F38: 平米 | G38: 60 | H38: 960 | I38: =H38*G38 -> 57600 | J38: Y
A39: 搭建 | B39: 搭建 | C39: 移动看台 | D39: 租赁看台 | E39: Plenary session | F39: 座 | G39: 300 | H39: 160 | I39: =H39*G39 -> 48000 | J39: Y
A40: 搭建 | B40: 搭建 | C40: 地屏架 | D40: 钢结构；20000mm*8000mm | E40: Plenary session | F40: 平米 | G40: 160 | H40: 160 | I40: =G40*H40 -> 25600 | J40: Y
A41: 搭建 | B41: 搭建 | C41: 搭建人员费用 | D41: 舞美搭建-布展搭建人工 | E41: Plenary session | F41: 位 | G41: 300 | H41: 80 | I41: 24000 | J41: Y
A42: 搭建 | B42: 搭建 | C42: 搭建人员交通 | D42: 舞美搭建-上海布展搭建人工交通 | E42: Plenary session | F42: 趟 | G42: 1000 | H42: 4 | I42: 4000 | J42: Y
A43: 搭建 | B43: 搭建 | C43: 搭建物料运输费用 | D43: 舞美搭建-所有物料运输 | E43: Plenary session | F43: 趟 | G43: 2000 | H43: 4 | I43: =G43*H43 -> 8000 | J43: Y
A44: 搭建 | B44: 搭建 | C44: 主舞台 | D44: 专用车台板；20000mm*7000mm | E44: Gala dinner | F44: 平米 | G44: 160 | H44: 140 | I44: =G44*H44 -> 22400 | J44: Y
A45: 搭建 | B45: 搭建 | C45: 找平板 | D45: 18mm夹板找平板；20000mm*7000mm | E45: Gala dinner | F45: 平米 | G45: 80 | H45: 140 | I45: 11200 | J45: Y
A46: 搭建 | B46: 搭建 | C46: 舞台围边 | D46: 19mm夹板围边；34000mm*800mmh | E46: Gala dinner | F46: 项 | G46: 8000 | H46: 1 | I46: 8000 | J46: Y
A47: 搭建 | B47: 搭建 | C47: 地毯 | D47: 展览地毯；20000mm*7000mm*800mmh | E47: Gala dinner | F47: 平米 | G47: 20 | H47: 168 | I47: 3360 | J47: Y
A48: 搭建 | B48: 搭建 | C48: 舞台踏步 | D48: 夹板展览地毯（正面两侧）；13000mm*600mmh | E48: Gala dinner | F48: 项 | G48: 5000 | H48: 1 | I48: 5000 | J48: Y
A49: 搭建 | B49: 搭建 | C49: LED大屏底座 | D49: 钢木结构 | E49: Gala dinner | F49: 项 | G49: 12000 | H49: 30 | I49: =G49*H49 -> 360000 | J49: Y
A50: 搭建 | B50: 搭建 | C50: T型舞台 | D50: 专用车台板；7000mm*2000mm | E50: Gala dinner | F50: 平米 | G50: 160 | H50: 14 | I50: 2240 | J50: Y
A51: 搭建 | B51: 搭建 | C51: 找平板 | D51: 18mm夹板找平板；7000mm*2000mm | E51: Gala dinner | F51: 平米 | G51: 80 | H51: 14 | I51: 1120 | J51: Y
A52: 搭建 | B52: 搭建 | C52: 舞台围边 | D52: 19mm夹板围边；16000mm*800mmh | E52: Gala dinner | F52: 项 | G52: 3000 | H52: 1 | I52: 3000 | J52: Y
A53: 搭建 | B53: 搭建 | C53: 地毯 | D53: 展览地毯；7000mm*2000mm*800mmh | E53: Gala dinner | F53: 平米 | G53: 20 | H53: 21 | I53: 420 | J53: Y
A54: 搭建 | B54: 搭建 | C54: 施维雅大旗 | E54: Gala dinner | F54: 平米 | G54: 0 | H54: 0 | I54: 0 | J54: Y
A55: 搭建 | B55: 搭建 | C55: 栏杆遮挡画面 | E55: Gala dinner | F55: 平米 | G55: 0 | H55: 0 | I55: 0 | J55: Y
A56: 搭建 | B56: 搭建 | C56: 搭建人员费用 | D56: 舞美搭建-布展搭建人工 | E56: Gala dinner | F56: 位 | G56: 300 | H56: 40 | I56: =G56*H56 -> 12000 | J56: Y
A57: 搭建 | B57: 搭建 | C57: 搭建人员交通 | D57: 舞美搭建-上海布展搭建人工交通 | E57: Plenary session | F57: 趟 | G57: 1000 | H57: 2 | I57: =G57*H57 -> 2000 | J57: Y
A58: 搭建 | B58: 搭建 | C58: 搭建物料运输费用 | D58: 舞美搭建-所有物料运输 | E58: Gala dinner | F58: 趟 | G58: 2000 | H58: 2 | I58: =G58*H58 -> 4000 | J58: Y
A59: AV设备租赁 | B59: 视频设备租赁 | C59: 处理器-大屏幕 | D59: Gloshine 560 LED Controller | E59: Plenary session | F59: 台/天 | G59: 1000 | H59: 1 | I59: =G59*H59 -> 1000 | J59: Y
A60: AV设备租赁 | B60: 视频设备租赁 | C60: 处理器-高清地砖LED | D60: Gloshine 560 LED Controller | E60: Plenary session | F60: 台/天 | G60: 1000 | H60: 6 | I60: 6000 | J60: Y
A61: AV设备租赁 | B61: 视频设备 | C61: LED大屏幕 | D61: Gloshine P3 LED Display (Unit:500mm*500mm )（8000mmX4500mm） | E61: Plenary session | F61: 平米 | G61: 600 | H61: 36 | I61: 21600 | J61: Y
A62: AV设备租赁 | B62: 视频设备 | C62: LED高清地砖 | D62: Gloshine P4 (Unit:500mm*500mm )（23000mmX8000mm） | E62: Plenary session | F62: 平米 | G62: 500 | H62: 184 | I62: 92000 | J62: Y
A63: AV设备租赁 | B63: 视频设备租赁 | C63: 液晶电视(55寸全高清) | D63: SHARP LCD-55 | E63: Plenary session | F63: 台/天 | G63: 1000 | H63: 4 | I63: =G63*H63 -> 4000 | J63: Y
A64: AV设备租赁 | B64: 视频设备租赁 | C64: 视频处理器(HD/SDI） | D64: BARCO EVENT MASTER E2 Video Processor | E64: Plenary session | F64: 台/天 | G64: 50000 | H64: 1 | I64: =G64*H64 -> 50000 | J64: Y
A65: AV设备租赁 | B65: 视频设备租赁 | C65: 大型控制台 | D65: BARCO EC-200 EVENT Controller | E65: Plenary session | F65: 个/天 | G65: 15000 | H65: 1 | I65: =G65*H65 -> 15000 | J65: Y
A66: AV设备租赁 | B66: 视频设备租赁 | C66: 频率转换器 | D66: BARCO FOLSOM IMAGEPRO-II Converte | E66: Plenary session | F66: 个/天 | G66: 1500 | H66: 1 | I66: =G66*H66 -> 1500 | J66: Y
A67: AV设备租赁 | B67: 视频设备租赁 | C67: 翻页提示器套装 (带PC-AS4遥控器) | D67: D’SAN PC-433 PerfectCue Light Kit | E67: Plenary session | F67: 套/天 | G67: 600 | H67: 2 | I67: =G67*H67 -> 1200 | J67: Y
A68: AV设备租赁 | B68: 视频设备租赁 | C68: 处理器 | D68: DATATON WATCHOUT Video Processo | E68: Plenary session | F68: 个/天 | G68: 1000 | H68: 6 | I68: =G68*H68 -> 6000 | J68: Y
A69: AV设备租赁 | B69: 视频设备租赁 | C69: 解密狗(5.0版本) | D69: DATATON WATCHOUT License Key | E69: Plenary session | F69: 个/天 | G69: 2000 | H69: 6 | I69: 12000 | J69: Y
A70: AV设备租赁 | B70: 视频设备租赁 | C70: 网络交换机 | D70: NETGEAR JGS524 Network Switch（千兆，24路） | E70: Plenary session | F70: 个/天 | G70: 1000 | H70: 2 | I70: =G70*H70 -> 2000 | J70: Y
A71: AV设备租赁 | B71: 视频设备租赁 | C71: 光纤延长器 | D71: EXTRON DVI104 Tx/Rx DVI Fiber Optic Extender | E71: Plenary session | F71: 个/天 | G71: 800 | H71: 10 | I71: 8000 | J71: Y
A72: AV设备租赁 | B72: 视频设备租赁 | C72: 光缆 | D72: KORNING LC-LC Fiber Cable(多模，双工，100m) | E72: Plenary session | F72: 个/天 | G72: 500 | H72: 10 | I72: 5000 | J72: Y
A73: AV设备租赁 | B73: 视频设备租赁 | C73: 监视器 | D73: PHILIPS Monitor (液晶 ，20") | E73: Plenary session | F73: 台/天 | G73: 500 | H73: 4 | I73: 2000 | J73: Y
A74: AV设备租赁 | B74: 视频设备租赁 | C74: Mac Pro | D74: （六核，Intel Xeon E5 处理器） | E74: Plenary session | F74: 台/天 | G74: 500 | H74: 1 | I74: 500 | J74: Y
A75: AV设备租赁 | B75: 视频设备租赁 | C75: 笔记本电脑 | D75: Laptop(APPLE , MACBOOK) | E75: Plenary session | F75: 台/天 | G75: 500 | H75: 4 | I75: 2000 | J75: Y
A76: AV设备租赁 | B76: 视频设备租赁 | C76: Layer架 | D76: Layer Truss | E76: Plenary session | F76: 米/天 | G76: 1000 | H76: 6 | I76: =G76*H76 -> 6000 | J76: Y
A77: AV设备租赁 | B77: 视频设备租赁 | C77: 处理器 | D77: Gloshine 560 LED Controller | E77: Gala dinner | F77: 台/天 | G77: 1000 | H77: 5 | I77: =G77*H77 -> 5000 | J77: Y
A78: AV设备租赁 | B78: 视频设备 | C78: LED大屏幕 | D78: Gloshine P3 LED Display LED大屏幕(Unit:500mm*500mm )（16000mmX5500mm） | E78: Gala dinner | F78: 平米 | G78: 600 | H78: 88 | I78: =G78*H78 -> 52800 | J78: Y
A79: AV设备租赁 | B79: 视频设备 | C79: LED侧屏 | D79: Gloshine P3 LED Display LED大屏幕(Unit:500mm*500mm )（5000mmX4500mm）*2 | E79: Gala dinner | F79: 平米 | G79: 600 | H79: 45 | I79: 27000 | J79: Y
A80: AV设备租赁 | B80: 视频设备租赁 | C80: 液晶电视(65寸全高清) | D80: SHARP LCD-65 | E80: Gala dinner | F80: 台/天 | G80: 1500 | H80: 2 | I80: 3000 | J80: Y
A81: AV设备租赁 | B81: 视频设备租赁 | C81: 视频处理器(HD/SDI） | D81: BARCO EVENT MASTER E2 Video Processor | E81: Gala dinner | F81: 台/天 | G81: 50000 | H81: 1 | I81: 50000 | J81: Y
A82: AV设备租赁 | B82: 视频设备租赁 | C82: 大型控制台 | D82: BARCO EC-200 EVENT Controller | E82: Gala dinner | F82: 个/天 | G82: 15000 | H82: 1 | I82: 15000 | J82: Y
A83: AV设备租赁 | B83: 视频设备租赁 | C83: 频率转换器 | D83: BARCO FOLSOM IMAGEPRO-II Converte | E83: Gala dinner | F83: 个/天 | G83: 1500 | H83: 1 | I83: 1500 | J83: Y
A84: AV设备租赁 | B84: 视频设备租赁 | C84: 翻页提示器套装 (带PC-AS4遥控器) | D84: D’SAN PC-433 PerfectCue Light Kit | E84: Gala dinner | F84: 套/天 | G84: 600 | H84: 1 | I84: 600 | J84: Y
A85: AV设备租赁 | B85: 视频设备租赁 | C85: 处理器 | D85: DATATON WATCHOUT Video Processo | E85: Gala dinner | F85: 个/天 | G85: 1000 | H85: 5 | I85: 5000 | J85: Y
A86: AV设备租赁 | B86: 视频设备租赁 | C86: 解密狗(5.0版本) | D86: DATATON WATCHOUT License Key | E86: Gala dinner | F86: 个/天 | G86: 2000 | H86: 5 | I86: 10000 | J86: Y
A87: AV设备租赁 | B87: 视频设备租赁 | C87: 网络交换机 | D87: NETGEAR JGS524 Network Switch（千兆，24路） | E87: Gala dinner | F87: 个/天 | G87: 1000 | H87: 2 | I87: 2000 | J87: Y
A88: AV设备租赁 | B88: 视频设备租赁 | C88: 光纤延长器 | D88: EXTRON DVI104 Tx/Rx DVI Fiber Optic Extender | E88: Gala dinner | F88: 个/天 | G88: 800 | H88: 7 | I88: 5600 | J88: Y
A89: AV设备租赁 | B89: 视频设备租赁 | C89: 光缆 | D89: KORNING LC-LC Fiber Cable(多模，双工，100m) | E89: Gala dinner | F89: 个/天 | G89: 500 | H89: 7 | I89: 3500 | J89: Y
A90: AV设备租赁 | B90: 视频设备租赁 | C90: 监视器 | D90: PHILIPS Monitor (液晶 ，20") | E90: Gala dinner | F90: 台/天 | G90: 500 | H90: 4 | I90: 2000 | J90: Y
A91: AV设备租赁 | B91: 视频设备租赁 | C91: Mac Pro | D91: （六核，Intel Xeon E5 处理器） | E91: Gala dinner | F91: 台/天 | G91: 500 | H91: 1 | I91: 500 | J91: Y
A92: AV设备租赁 | B92: 视频设备租赁 | C92: 笔记本电脑 | D92: Laptop(APPLE , MACBOOK) | E92: Gala dinner | F92: 台/天 | G92: 500 | H92: 4 | I92: 2000 | J92: Y
A93: AV设备租赁 | B93: 视频设备租赁 | C93: Layer架 | D93: Layer Truss | E93: Gala dinner | F93: 米/天 | G93: 1000 | H93: 14 | I93: 14000 | J93: Y
A94: AV设备租赁 | B94: 音频设备租赁 | C94: 全频音箱（线阵列系列） | D94: d&b Audiotechnik V8 Loudspeaker | E94: Plenary session | F94: 台/天 | G94: 1500 | H94: 22 | I94: =G94*H94 -> 33000 | J94: Y
A95: AV设备租赁 | B95: 音频设备租赁 | C95: 低频音箱 | D95: d&b Audiotechnik V-Sub Subwoofer | E95: Plenary session | F95: 台/天 | G95: 1500 | H95: 10 | I95: =G95*H95 -> 15000 | J95: Y
A96: AV设备租赁 | B96: 音频设备租赁 | C96: 全频音箱 | D96: d&b Audiotechnik Y7p Loudspeaker | E96: Plenary session | F96: 台/天 | G96: 1000 | H96: 8 | I96: =G96*H96 -> 8000 | J96: Y
A97: AV设备租赁 | B97: 音频设备租赁 | C97: 全频返送音箱 | D97: d&b Audiotechnik Max2 Loudspeaker | E97: Plenary session | F97: 台/天 | G97: 800 | H97: 6 | I97: =G97*H97 -> 4800 | J97: Y
A98: AV设备租赁 | B98: 音频设备租赁 | C98: 数字功放 | D98: d&b D40 Digital Power Amplifier | E98: Plenary session | F98: 台/天 | G98: 1500 | H98: 6 | I98: =G98*H98 -> 9000 | J98: Y
A99: AV设备租赁 | B99: 音频设备租赁 | C99: 数字调音台 | D99: YAMAHA QL-5 Digital Mixer(32ch) | E99: Plenary session | F99: 台/天 | G99: 8000 | H99: 1 | I99: =G99*H99 -> 8000 | J99: Y
A100: AV设备租赁 | B100: 音频设备租赁 | C100: 舒尔UR4D+接收机 | D100: SHURE UR4D+ Dual channel diversity receiver | E100: Plenary session | F100: 台/天 | G100: 400 | H100: 8 | I100: =G100*H100 -> 3200 | J100: Y
A101: AV设备租赁 | B101: 音频设备租赁 | C101: 无线手持式话筒 | D101: SHURE UR2/Beta 58A Wireless Hand-hold Mic | E101: Plenary session | F101: 个/天 | G101: 200 | H101: 6 | I101: =G101*H101 -> 1200 | J101: Y
A102: AV设备租赁 | B102: 音频设备租赁 | C102: 头戴式话筒 | D102: SHURE UR1/WBH53 Headworn Microphone | E102: Plenary session | F102: 个/天 | G102: 200 | H102: 6 | I102: =G102*H102 -> 1200 | J102: Y
A103: AV设备租赁 | B103: 音频设备租赁 | C103: U段天线放大传输系统 | D103: SHURE UA845E UHF Antenna Distribution System | E103: Plenary session | F103: 台/天 | G103: 700 | H103: 2 | I103: 1400 | J103: Y
A104: AV设备租赁 | B104: 音频设备租赁 | C104: 有线对讲系统主机 | D104: PRDUCTION INTERCOM MS-200 Master Station | E104: Plenary session | F104: 套 | G104: 1500 | H104: 1 | I104: 1500 | J104: Y
A105: AV设备租赁 | B105: 音频设备租赁 | C105: 有线对讲系统接收点 | D105: PRDUCTION INTERCOM Receiver | E105: Plenary session | F105: 个/天 | G105: 150 | H105: 6 | I105: 900 | J105: Y
A106: AV设备租赁 | B106: 音频设备租赁 | C106: 接口箱 | D106: YAMAHA RIO32-24 | E106: Plenary session | F106: 个/天 | G106: 4000 | H106: 1 | I106: =G106*H106 -> 4000 | J106: Y
A107: AV设备租赁 | B107: 音频设备租赁 | C107: 无线对讲系统基站 | D107: CLEARCOM Master Station | E107: Plenary session | F107: 个 | G107: 1500 | H107: 1 | I107: =G107*H107 -> 1500 | J107: Y
A108: AV设备租赁 | B108: 音频设备租赁 | C108: 无线对讲系统接收点 | D108: CLEARCOM Receiver | E108: Plenary session | F108: 个/天 | G108: 500 | H108: 4 | I108: =G108*H108 -> 2000 | J108: Y
A109: AV设备租赁 | B109: 音频设备租赁 | C109: DI盒 | D109: RADIAL Pro48 Active DI Box | E109: Plenary session | F109: 个/天 | G109: 300 | H109: 4 | I109: =G109*H109 -> 1200 | J109: Y
A110: AV设备租赁 | B110: 音频设备租赁 | C110: Layer架 | D110: Layer Truss | E110: Plenary session | F110: 套 | G110: 1000 | H110: 2 | I110: =G110*H110 -> 2000 | J110: Y
A111: AV设备租赁 | B111: 灯光设备租赁 | C111: 图案电脑灯（切片） | D111: Moving lights,1500w Spot-Performance | E111: Plenary session | F111: 个/天 | G111: 800 | H111: 24 | I111: =G111*H111 -> 19200 | J111: Y
A112: AV设备租赁 | B112: 灯光设备租赁 | C112: 光束电脑灯 | D112: JOLLY X-15R-Beam | E112: Plenary session | F112: 个/天 | G112: 600 | H112: 16 | I112: =G112*H112 -> 9600 | J112: Y
A113: AV设备租赁 | B113: 灯光设备租赁 | C113: LED变色灯 | D113: TERBLY OVAL 48D Light | E113: Plenary session | F113: 个/天 | G113: 150 | H113: 24 | I113: =G113*H113 -> 3600 | J113: Y
A114: AV设备租赁 | B114: 灯光设备租赁 | C114: 灯光版块 | D114: EXPLORER Ovation LED Moving Heads Light | E114: Plenary session | F114: 个/天 | G114: 500 | H114: 16 | I114: =G114*H114 -> 8000 | J114: Y
A115: AV设备租赁 | B115: 灯光设备租赁 | C115: 四头灯 | D115: 4 Bulb Flood Light | E115: Plenary session | F115: 个/天 | G115: 200 | H115: 6 | I115: =G115*H115 -> 1200 | J115: Y
A116: AV设备租赁 | B116: 灯光设备租赁 | C116: 调光台 | D116: MA grandMA2 Light Console | E116: Plenary session | F116: 台/天 | G116: 15000 | H116: 1 | I116: =G116*H116 -> 15000 | J116: Y
A117: AV设备租赁 | B117: 灯光设备租赁 | C117: 信号放大器 | D117: Lighting DA | E117: Plenary session | F117: 台/天 | G117: 500 | H117: 4 | I117: =G117*H117 -> 2000 | J117: Y
A118: AV设备租赁 | B118: 灯光设备租赁 | C118: 灯光架 | D118: Truss (300mmx400mm) | E118: Plenary session | F118: 米 | G118: 100 | H118: 100 | I118: =G118*H118 -> 10000 | J118: Y
A119: AV设备租赁 | B119: 灯光设备租赁 | C119: 追光灯 | D119: AURORA HMI-2500 Follow Spot | E119: Plenary session | F119: 个/天 | G119: 1500 | H119: 2 | I119: 3000 | J119: Y
A120: AV设备租赁 | B120: 灯光设备租赁 | C120: 控制器 | D120: COLUMBUS MCKINNON CMC-800-B Controller ( 8路,带RC-8遥控) | E120: Plenary session | F120: 台/天 | G120: 1200 | H120: 2 | I120: 2400 | J120: Y
A121: AV设备租赁 | B121: 灯光设备租赁 | C121: 电动葫芦 | D121: COLUMBUS MCKINNON SPC2003 Electric Chain Hoist (1吨，20米) | E121: Plenary session | F121: 台/天 | G121: 200 | H121: 14 | I121: 2800 | J121: Y
A122: AV设备租赁 | B122: 灯光设备租赁 | C122: 灯光版块 | D122: Power Distributor Cabinet 配电箱(三相,200A) | E122: Plenary session | F122: 台/天 | G122: 2000 | H122: 2 | I122: 4000 | J122: Y
A123: AV设备租赁 | B123: 技术人员 | C123: 控台技术人员 | E123: Plenary session | F123: 人次 | G123: 500 | H123: 21 | I123: 10500 | J123: Y
A124: AV设备租赁 | B124: 搭建人员 | C124: 布展工作人员 | E124: Plenary session | F124: 人次 | G124: 300 | H124: 30 | I124: 9000 | J124: Y
A125: AV设备租赁 | B125: 人员差旅 | C125: AV部分人员差旅 | E125: Plenary session | F125: 人 | G125: 800 | H125: 17 | I125: 13600 | J125: Y
A126: AV设备租赁 | B126: 运输费 | C126: 物料往返运输 | E126: Plenary session | F126: 趟 | G126: 4000 | H126: 2 | I126: 8000 | J126: Y
A127: AV设备租赁 | B127: 音频设备租赁 | C127: 全频音箱（线阵列系列） | D127: Zsound Loudspeake | E127: Gala dinner | F127: 台/天 | G127: 800 | H127: 16 | I127: =G127*H127 -> 12800 | J127: Y
A128: AV设备租赁 | B128: 音频设备租赁 | C128: 低频音箱 | D128: Zsound Sub Subwoofer | E128: Gala dinner | F128: 台/天 | G128: 800 | H128: 8 | I128: 6400 | J128: Y
A129: AV设备租赁 | B129: 音频设备租赁 | C129: 全频音箱 | D129: Zsound Loudspeaker | E129: Gala dinner | F129: 台/天 | G129: 600 | H129: 8 | I129: 4800 | J129: Y
A130: AV设备租赁 | B130: 音频设备租赁 | C130: 全频返送音箱 | D130: Zsound Loudspeaker | E130: Gala dinner | F130: 台/天 | G130: 500 | H130: 4 | I130: 2000 | J130: Y
A131: AV设备租赁 | B131: 音频设备租赁 | C131: 数字功放 | D131: Zsound Digital Power Amplifier | E131: Gala dinner | F131: 台/天 | G131: 800 | H131: 5 | I131: 4000 | J131: Y
A132: AV设备租赁 | B132: 音频设备租赁 | C132: 数字调音台 | D132: YAMAHA QL-5 Digital Mixer(32ch) | E132: Gala dinner | F132: 台/天 | G132: 8000 | H132: 1 | I132: 8000 | J132: Y
A133: AV设备租赁 | B133: 音频设备租赁 | C133: 舒尔UR4D+接收机 | D133: SHURE UR4D+ Dual channel diversity receiver | E133: Gala dinner | F133: 台/天 | G133: 400 | H133: 9 | I133: 3600 | J133: Y
A134: AV设备租赁 | B134: 音频设备租赁 | C134: 无线手持式话筒 | D134: SHURE UR2/Beta 58A Wireless Hand-hold Mic | E134: Gala dinner | F134: 个/天 | G134: 200 | H134: 12 | I134: 2400 | J134: Y
A135: AV设备租赁 | B135: 音频设备租赁 | C135: 头戴式话筒 | D135: SHURE UR1/WBH53 Headworn Microphone | E135: Gala dinner | F135: 个/天 | G135: 200 | H135: 6 | I135: 1200 | J135: Y
A136: AV设备租赁 | B136: 音频设备租赁 | C136: 个人监听系统(无线) | D136: SHURE PSM 600 Personal Monitor Systems | E136: Gala dinner | F136: 个/天 | G136: 500 | H136: 2 | I136: 1000 | J136: Y
A137: AV设备租赁 | B137: 音频设备租赁 | C137: U段天线放大传输系统 | D137: SHURE UA845E UHF Antenna Distribution System | E137: Gala dinner | F137: 台/天 | G137: 700 | H137: 2 | I137: =G137*H137 -> 1400 | J137: Y
A138: AV设备租赁 | B138: 音频设备租赁 | C138: 有线对讲系统主机 | D138: PRDUCTION INTERCOM MS-200 Master Station | E138: Gala dinner | F138: 套 | G138: 1500 | H138: 1 | I138: =G138*H138 -> 1500 | J138: Y
A139: AV设备租赁 | B139: 音频设备租赁 | C139: 有线对讲系统接收点 | D139: PRDUCTION INTERCOM Receiver | E139: Gala dinner | F139: 个/天 | G139: 150 | H139: 8 | I139: =G139*H139 -> 1200 | J139: Y
A140: AV设备租赁 | B140: 音频设备租赁 | C140: 接口箱 | D140: YAMAHA RIO32-24 | E140: Gala dinner | F140: 个/天 | G140: 4000 | H140: 1 | I140: =G140*H140 -> 4000 | J140: Y
A141: AV设备租赁 | B141: 音频设备租赁 | C141: 无线对讲系统基站 | D141: CLEARCOM Master Station | E141: Gala dinner | F141: 个 | G141: 1500 | H141: 1 | I141: =G141*H141 -> 1500 | J141: Y
A142: AV设备租赁 | B142: 音频设备租赁 | C142: 无线对讲系统接收点 | D142: CLEARCOM Receiver | E142: Gala dinner | F142: 个/天 | G142: 500 | H142: 6 | I142: =G142*H142 -> 3000 | J142: Y
A143: AV设备租赁 | B143: 音频设备租赁 | C143: DI盒 | D143: RADIAL Pro48 Active DI Box | E143: Gala dinner | F143: 个/天 | G143: 300 | H143: 4 | I143: =G143*H143 -> 1200 | J143: Y
A144: AV设备租赁 | B144: 音频设备租赁 | C144: Layer架 | D144: Layer Truss | E144: Gala dinner | F144: 套 | G144: 1000 | H144: 2 | I144: =G144*H144 -> 2000 | J144: Y
A145: AV设备租赁 | B145: 灯光设备租赁 | C145: 图案电脑灯（切片） | D145: Moving lights,1500w Spot-Performance | E145: Gala dinner | F145: 个/天 | G145: 800 | H145: 20 | I145: =G145*H145 -> 16000 | J145: Y
A146: AV设备租赁 | B146: 灯光设备租赁 | C146: 光束电脑灯 | D146: JOLLY X-15R-Beam | E146: Gala dinner | F146: 个/天 | G146: 600 | H146: 28 | I146: 16800 | J146: Y
A147: AV设备租赁 | B147: 灯光设备租赁 | C147: LED变色灯 | D147: TERBLY OVAL 48D Light | E147: Gala dinner | F147: 个/天 | G147: 150 | H147: 60 | I147: 9000 | J147: Y
A148: AV设备租赁 | B148: 灯光设备租赁 | C148: 灯光版块 | D148: EXPLORER Ovation LED Moving Heads Light | E148: Gala dinner | F148: 个/天 | G148: 500 | H148: 16 | I148: 8000 | J148: Y
A149: AV设备租赁 | B149: 灯光设备租赁 | C149: 四头灯 | D149: 4 Bulb Flood Light | E149: Gala dinner | F149: 个/天 | G149: 200 | H149: 8 | I149: 1600 | J149: Y
A150: AV设备租赁 | B150: 灯光设备租赁 | C150: 雾机 | D150: Fog Machine | E150: Gala dinner | F150: 个/天 | G150: 800 | H150: 2 | I150: 1600 | J150: Y
A151: AV设备租赁 | B151: 灯光设备租赁 | C151: 调光台 | D151: MA grandMA2 Light Console | E151: Gala dinner | F151: 台/天 | G151: 15000 | H151: 1 | I151: =G151*H151 -> 15000 | J151: Y
A152: AV设备租赁 | B152: 灯光设备租赁 | C152: 信号放大器 | D152: Lighting DA | E152: Gala dinner | F152: 台/天 | G152: 500 | H152: 6 | I152: 3000 | J152: Y
A153: AV设备租赁 | B153: 灯光设备租赁 | C153: 灯光架 | D153: Truss 灯光架 (300mmx400mm) | E153: Gala dinner | F153: 米 | G153: 100 | H153: 100 | I153: 10000 | J153: Y
A154: AV设备租赁 | B154: 灯光设备租赁 | C154: Layer架 | D154: Layer架 | E154: Gala dinner | F154: 米 | G154: 1500 | H154: 6 | I154: 9000 | J154: Y
A155: AV设备租赁 | B155: 灯光设备租赁 | C155: 手动葫芦 | D155: COLUMBUS MCKINNON Chain Hoist | E155: Gala dinner | F155: 台/天 | G155: 200 | H155: 4 | I155: =G155*H155 -> 800 | J155: Y
A156: AV设备租赁 | B156: 灯光设备租赁 | C156: 灯光版块 | D156: Power Distributor Cabinet 配电箱(三相,200A) | E156: Gala dinner | F156: 台/天 | G156: 2000 | H156: 2 | I156: 4000 | J156: Y
A157: AV设备租赁 | B157: 技术人员 | C157: 控台技术人员 | E157: Gala dinner | F157: 人次 | G157: 500 | H157: 21 | I157: 10500 | J157: Y
A158: AV设备租赁 | B158: 搭建人员 | C158: 布展工作人员 | E158: Gala dinner | F158: 人次 | G158: 300 | H158: 39 | I158: =G158*H158 -> 11700 | J158: Y
A159: AV设备租赁 | B159: 人员差旅 | C159: AV部分人员差旅 | E159: Gala dinner | F159: 人 | G159: 800 | H159: 20 | I159: =G159*H159 -> 16000 | J159: Y
A160: AV设备租赁 | B160: 运输费 | C160: 物料往返运输 | E160: Gala dinner | F160: 趟 | G160: 15000 | H160: 2 | I160: =G160*H160 -> 30000 | J160: Y
A161: 道具 | B161: 道具 | C161: 运动会 | D161: 围巾印logo | E161: Team Building | F161: 件 | G161: 50 | H161: 1600 | I161: 80000 | J161: Y
A162: 道具 | B162: 道具 | C162: 运动会 | D162: 篮球吉祥物；每个zone2个 | E162: Gala dinner | F162: 个 | G162: 2500 | H162: 12 | I162: 30000 | J162: Y
A163: 道具 | B163: 采购 | C163: 晚宴道具 | E163: Gala dinner | F163: 项 | G163: 5000 | H163: 1 | I163: 5000 | J163: Y
A164: 人员 | B164: 人员费用 | C164: 礼仪 | D164: 礼仪及服装 | E164: Gala dinner | F164: 人/天 | G164: 600 | H164: 2 | I164: 1200 | J164: Y
A165: 人员 | B165: 人员费用 | C165: 晚宴节目演员 | D165: 人屏互动 | E165: Gala dinner | F165: 人/天 | G165: 3500 | H165: 6 | I165: 21000 | J165: Y
A166: 人员 | B166: 人员费用 | C166: MC | D166: 上海主持人 | E166: Gala dinner | F166: 人/天 | G166: 8000 | H166: 1 | I166: =G166*H166 -> 8000 | J166: Y
A167: 人员 | B167: 人员费用 | C167: 客户总监 | D167: 此项收费适用于活动和项目执行中的人工费用，包括沟通，咨询及现场支持，不适用于创意、设计以及医学支持类工作 | E167: For all sessions | F167: 人/天 | G167: 1000 | H167: 12 | I167: =G167*H167 -> 12000 | J167: N | K167: 2人*6天
A168: 人员 | B168: 人员费用 | C168: 客户经理 | D168: 此项收费适用于活动和项目执行中的人工费用，包括沟通，咨询及现场支持，不适用于创意、设计以及医学支持类工作 | E168: For all sessions | F168: 人/天 | G168: 800 | H168: 12 | I168: =G168*H168 -> 9600 | J168: N | K168: 2人*6天
A169: 人员 | B169: 人员费用 | C169: 客户主管 | D169: 此项收费适用于活动和项目执行中的人工费用，包括沟通，咨询及现场支持，不适用于创意、设计以及医学支持类工作 | E169: For all sessions | F169: 人/天 | G169: 500 | H169: 12 | I169: =G169*H169 -> 6000 | J169: N | K169: 2人*6天
A170: 人员 | B170: 人员费用 | C170: 项目经理 | D170: 此项收费适用于活动和项目执行中的人工费用，包括沟通，咨询及现场支持，不适用于创意、设计以及医学支持类工作 | E170: For all sessions | F170: 人/天 | G170: 500 | H170: 24 | I170: =G170*H170 -> 12000 | J170: N | K170: 4人*6天
A171: 人员 | B171: 人员费用 | C171: 活动现场支持 | E171: For all sessions | F171: 人/天 | G171: 500 | H171: 24 | I171: =G171*H171 -> 12000 | J171: N | K171: 8人*3天
A172: 人员 | B172: 人员费用 | C172: 摄像师 | D172: 本地 2人 | E172: Plenary session | F172: 人/天 | G172: 2500 | H172: 2 | I172: =G172*H172 -> 5000 | J172: Y
A173: 人员 | B173: 人员费用 | C173: 摄影师 | D173: 北京 2人 | E173: Plenary session | F173: 人/天 | G173: 5000 | H173: 2 | I173: =G173*H173 -> 10000 | J173: Y | K173: 宇群摄影
A174: 人员 | B174: 人员费用 | C174: 摄像师 | D174: 本地 2人 | E174: Gala dinner | F174: 人/天 | G174: 2500 | H174: 2 | I174: =G174*H174 -> 5000 | J174: Y
A175: 人员 | B175: 人员费用 | C175: 摄影师 | D175: 北京 2人 | E175: Gala dinner | F175: 人/天 | G175: 5000 | H175: 2 | I175: 10000 | J175: Y | K175: 宇群摄影
A176: 人员 | B176: 人员费用 | C176: 摄像师 | D176: 本地 4人；足球赛和篮球赛各2人 | E176: Team Building | F176: 人/天 | G176: 2500 | H176: 4 | I176: =G176*H176 -> 10000 | J176: Y
A177: 人员 | B177: 人员费用 | C177: 摄影师 | D177: 北京 2人 | E177: Team Building | F177: 人/天 | G177: 5000 | H177: 2 | I177: 10000 | J177: Y
A178: 人员 | B178: 人员费用 | C178: 摄影师 | D178: 本地 2人 | E178: Team Building | F178: 人/天 | G178: 2500 | H178: 2 | I178: 5000 | J178: Y | K178: 宇群摄影
A179: 人员 | B179: 人员费用 | C179: 摇臂 | D179: 大会、晚宴、TB | E179: For all sessions | F179: 人/天 | G179: 8000 | H179: 4 | I179: =G179*H179 -> 32000 | J179: Y
A180: 人员 | B180: 人员费用 | C180: 云摄影 | D180: 微信实时上传（含设备及修图） | E180: For all sessions | F180: 场 | G180: 2500 | H180: 4 | I180: =G180*H180 -> 10000 | J180: Y
A181: 人员 | B181: 人员费用 | C181: 导播 | D181: 导播 | E181: Plenary session | F181: 人/天 | G181: 6000 | H181: 1 | I181: =G181*H181 -> 6000 | J181: Y
A182: 人员 | B182: 人员费用 | C182: 化妆师 | D182: 晚宴 | E182: Gala dinner | F182: 人/天 | G182: 1000 | H182: 10 | I182: =G182*H182 -> 10000 | J182: Y
A183: 人员 | B183: 人员费用 | C183: 技术人员 | D183: 灯光，音响，视频，美工，电工 | F183: 人/天 | I183: =G183*H183 -> 0 | J183: Y
A184: 人员 | B184: 人员费用 | C184: 现场沟通人员 | F184: 人/天 | I184: =G184*H184 -> 0 | J184: Y
A185: 道具 | B185: 道具 | C185: 区域 | D185: 给区域提供服装、老师等 | E185: Gala dinner | F185: 区域 | G185: 0 | H185: 0 | I185: =G185*H185 -> 0 | J185: Y
A186: 道具 | B186: 道具 | C186: 团建 | D186: 运动会加油道具 | E186: Team Building | F186: 组 | G186: 5000 | H186: 1 | I186: 5000 | J186: Y
A187: 差旅费用 | B187: 差旅费用 | C187: 交通+餐饮 | D187: 舞蹈演员；上海-苏州 | E187: Gala dinner | F187: 人 | G187: 400 | H187: 6 | I187: =G187*H187 -> 2400 | J187: Y
A188: 差旅费用 | B188: 差旅费用 | C188: 考察 | D188: 前期踩点测量等 | E188: For all sessions | F188: 人 | G188: 3000 | H188: 5 | I188: =G188*H188 -> 15000 | J188: Y
A189: 差旅费用 | B189: 差旅费用 | C189: 交通+食宿 | D189: 北京摄影师2人 | E189: For all sessions | F189: 人 | G189: 4000 | H189: 2 | I189: =G189*H189 -> 8000 | J189: Y
A190: 差旅费用 | B190: 差旅费用 | C190: 交通费 | D190: 6位工作人员 | E190: For all sessions | F190: 人/天 | G190: 1100 | H190: 6 | I190: =G190*H190 -> 6600 | J190: Y
A191: 差旅费用 | B191: 差旅费用 | C191: 住宿费 | D191: 3间工作人员8晚住宿 | E191: For all sessions | F191: 人/天 | G191: 600 | H191: 24 | I191: 14400 | J191: Y
A192: 差旅费用 | B192: 差旅费用 | C192: 餐费+当地交通费+通讯费 | D192: 6位工作人员*8天 | E192: For all sessions | F192: 人/天 | G192: 300 | H192: 48 | I192: 14400 | J192: Y
G193: 搭建制作总计(不含服务费和税费): | I193: =SUM(I15:I192) -> 2059220
H194: 其他项费用小计：
H195: 第三方费用小计 Total 3rd party cost: | I195: =SUM(I15:I192)-I168-I167-I169-I170 -> 2019620
B196: 服务费 Service Fee | D196: 市场营销公司垫付的零星第三方支出，需要收取在实际发生基础上收取服务费的部分。请注意需要付款时提供第三方发票作为支持文件。 | H196: 0.1 | I196: =I195*H196 -> 201962
H197: 不含税总计: | I197: =I193+I196 -> 2261182
G198: 税金 Tax | H198: 0.06 | I198: =I197*H198 -> 135670.92

Sheet Video视频
A1: 施维雅报价明细-视频制作
A4: Currency币种:CNY人民币
A5: 说明：
A6: * | B6: 施维雅只接受6%的增值税,其他税费请一律含进单价
A7: * | B7: 如有任何修改或添加行，请用红色字体显示
A8: * | B8: 请不要删除行
A9: * | B9: 所有单价都不含增值税
E11: 具体项目预算 Quotation
A12: 视频名称 | B12: 项目 Item | C12: 内容描述 Description | D12: 收费单位 Unit | E12: 单价 Unit Price | F12: 数量 Unit | G12: 总价 Subtotal | H12: 是否第三方费用? （Y/N) | I12: 备注
A13: Warm-up Video(大会暖场视频) | B13: 二维动画制作（Flash） | D13: 秒/Sec | E13: 300 | F13: 0 | G13: =E13*F13 -> 0 | H13: Y
A14: Warm-up Video(大会暖场视频) | B14: 三维动画制作 | D14: 秒/Sec | E14: 500 | F14: 0 | G14: =E14*F14 -> 0 | H14: Y
A15: Warm-up Video(大会暖场视频) | B15: 动态幻灯片 | D15: 秒/Sec | E15: 200 | F15: 0 | G15: 0 | H15: Y
A16: Warm-up Video(大会暖场视频) | B16: 脚本大纲 | C16: 视频主线，大纲发展 | D16: 个/pc | E16: 3000 | F16: 1 | G16: 3000 | H16: N
A17: Warm-up Video(大会暖场视频) | B17: 脚本编辑 | C17: 活动或拍摄活动前期的脚本编写 | D17: 小时/hour | E17: 500 | F17: 8 | G17: 4000 | H17: N
A18: Warm-up Video(大会暖场视频) | B18: 视频素材收集 | C18: 包含拍摄前采访、图片检索、对施维雅提供的素材进行整理等 | D18: 小时/hour | E18: 150 | F18: 20 | G18: 3000 | H18: N
A19: Warm-up Video(大会暖场视频) | B19: 拍摄 | C19: 全天拍摄（单机位），含1位拍摄人员的费用 | D19: 天/day | E19: 4000 | F19: 0 | G19: 0 | H19: Y
A20: Warm-up Video(大会暖场视频) | B20: 特效 | C20: 转场特效，字幕特效，logo特效等 | D20: 个/pc | E20: 300 | F20: 2 | G20: 600 | H20: Y
A21: Warm-up Video(大会暖场视频) | B21: 配乐 | C21: 为视频提供背景音乐(不包括版权音乐的版权费) | D21: 个/pc | E21: 500 | F21: 1 | G21: 500 | H21: Y
A22: Warm-up Video(大会暖场视频) | B22: 字幕 | C22: 按照剧本为视频添加字幕(不包括特效字幕) | D22: 分钟 | E22: 200 | F22: 0 | G22: 0 | H22: Y
A23: Warm-up Video(大会暖场视频) | B23: 配音 | C23: 按照剧本进行配音，专业级配音演员 | D23: 分钟 | E23: 500 | F23: 0 | G23: 0 | H23: Y
A24: Warm-up Video(大会暖场视频) | B24: 三维特效 | D24: 秒 | E24: 500 | F24: 0 | G24: 0 | H24: Y
A25: Warm-up Video(大会暖场视频) | B25: 修图 Patch up | C25: 对实拍的人物照片进行修补 | D25: 张/pc | E25: 150 | F25: 15 | G25: 2250 | H25: Y
A26: Warm-up Video(大会暖场视频) | B26: 后期加工及内容剪辑 Filming Editing | C26: 视频剪辑，指对母带进行剪辑，按工作时间收取 | D26: 小时/hour | E26: 500 | F26: 20 | G26: 10000 | H26: Y
A27: Warm-up Video(大会暖场视频) | B27: 多媒体的合成 | C27: 包含配音、配乐、字幕的合成；收费标准指一套成品 | D27: 个/pc | E27: 200 | F27: 5 | G27: 1000 | H27: Y
A28: opening Video(大会暖场视频) | B28: 配乐 | C28: 为视频提供背景音乐(不包括版权音乐的版权费) | D28: 个/pc | E28: 500 | F28: 1 | G28: =E28*F28 -> 500 | H28: Y
A29: opening Video(大会暖场视频) | B29: 后期加工及内容剪辑（大会结束和H5） Filming Editing | C29: 视频剪辑，指对母带进行剪辑，按工作时间收取 | D29: 小时/hour | E29: 500 | F29: 15 | G29: 7500 | H29: Y
A30: 人屏互动视频 | B30: 配乐 | C30: 为视频提供背景音乐(不包括版权音乐的版权费) | D30: 个/pc | E30: 500 | F30: 1 | G30: 500 | H30: Y
A31: Post-event video - Gala dinner（晚宴现场花絮视频） | B31: 配乐 | C31: 为视频提供背景音乐(不包括版权音乐的版权费) | D31: 个/pc | E31: 500 | F31: 1 | G31: =E31*F31 -> 500 | H31: Y
A32: Post-event video - Gala dinner（晚宴现场花絮视频） | B32: 后期加工及内容剪辑（连夜剪辑） Filming Editing | C32: 视频剪辑，指对母带进行剪辑，按工作时间收取 | D32: 小时/hour | E32: 1000 | F32: 10 | G32: 10000 | H32: Y
A33: Post-event video - Team building（足球篮球赛现场花絮视频） | B33: 配乐 | C33: 为视频提供背景音乐(不包括版权音乐的版权费) | D33: 个/pc | E33: 500 | F33: 1 | G33: =E33*F33 -> 500 | H33: Y
A34: Post-event video - Team building（足球篮球赛现场花絮视频） | B34: 后期加工及内容剪辑（连夜剪辑） Filming Editing | C34: 视频剪辑，指对母带进行剪辑，按工作时间收取 | D34: 小时/hour | E34: 1000 | F34: 10 | G34: =E34*F34 -> 10000 | H34: Y
A35: 整体活动剪辑 | B35: 配乐 | C35: 为视频提供背景音乐(不包括版权音乐的版权费) | D35: 个/pc | E35: 500 | F35: 1 | G35: =E35*F35 -> 500 | H35: Y
A36: 整体活动剪辑 | B36: 后期加工及内容剪辑（连夜剪辑） Filming Editing | C36: 视频剪辑，指对母带进行剪辑，按工作时间收取 | D36: 小时/hour | E36: 1000 | F36: 10 | G36: 10000 | H36: Y
A37: 动态KV | B37: 配乐 | C37: 特效音 | D37: 个/pc | E37: 500 | F37: 1 | G37: 500 | H37: Y
A38: 动态KV | B38: 后期加工及内容剪辑（连夜剪辑） Filming Editing | C38: 动态特效制作 | D38: 小时/hour | E38: 1000 | F38: 4 | G38: 4000 | H38: Y
A39: 视频总计(不含服务费和税费): | G39: =SUM(G13:G36) -> 64350
F40: 其他项费用小计： | G40: =SUM(#REF!) -> 
B41: 第三方费用小计 Total 3rd party cost: | G41: =SUM(G13:G38)--G18-G17-G16 -> 64850
B42: 服务费 Service Fee | C42: 市场营销公司垫付的零星第三方支出，需要收取在实际发生基础上收取服务费的部分。请注意需要付款时提供第三方发票作为支持文件。 | F42: 0.1 | G42: =G41*F42 -> 6485
B43: 不含税总计: | G43: =G39+G42 -> 70835
B44: 税金 Tax | F44: 0.06 | G44: =G43*F44 -> 4250.1

Sheet 同传
A3: 施维雅报价明细-制作搭建
A6: Currency币种:CNY人民币
A7: 说明：
A8: * | B8: 施维雅只接受6%的增值税,其他税费请一律含进单价
A9: * | B9: 如有任何修改或添加行，请用红色字体显示
A10: * | B10: 请不要删除行
A11: * | B11: 所有单价都不含增值税
G13: 具体项目预算 Quotation
A14: 类别 | B14: 项目 Item | C14: 规格 Specification | D14: 内容描述 Description | E14: 大会环节 | F14: 收费单位 Unit | G14: 单价 Unit Price | H14: 数量 Unit | I14: 总价 Subtotal | J14: 是否第三方费用?（Y/N) | K14: 备注
A15: 同传系统 | B15: 同传设备 | C15: 1套 | D15: 1台中控+1台发射机+1台辐射板+2台译员机+2台译员耳机+3根线材 | E15: Plenary session | F15: 套 | G15: 3000 | H15: 1 | I15: =G15*H15 -> 3000 | J15: Y
A16: 同传系统 | B16: 接收器 | D16: BOSCH Receiver LBB4540/08 | E16: Plenary session | F16: 个 | G16: 30 | H16: 1600 | I16: =G16*H16 -> 48000 | J16: Y
A17: 同传系统 | B17: 辐射板 | D17: BOSCH RadiatorLBB4512/0 | E17: Plenary session | F17: 个 | G17: 600 | H17: 5 | I17: =G17*H17 -> 3000 | J17: Y
A18: 同传系统 | B18: 译员 | C18: 中英互译 | E18: Plenary session | F18: 个 | G18: 15000 | H18: 2 | I18: =G18*H18 -> 30000 | J18: Y
A19: 同传系统 | B19: 兼职 | D19: 派发接收器 | E19: Plenary session | F19: 人/天 | G19: 300 | H19: 10 | I19: =G19*H19 -> 3000 | J19: Y
A20: 同传系统 | B20: 差旅费 | C20: 翻译人员差旅 | E20: Plenary session | F20: 人次 | G20: 1000 | H20: 2 | I20: =G20*H20 -> 2000 | J20: Y
A21: 同传系统 | B21: 差旅费 | C21: 技术人员差旅 | E21: Plenary session | F21: 人次 | G21: 3000 | H21: 2 | I21: =G21*H21 -> 6000 | J21: Y
G22: 同传设备总计(不含服务费和税费): | I22: =SUM(I15:I21) -> 95000
H23: 其他项费用小计：
H24: 第三方费用小计 Total 3rd party cost: | I24: =SUM(I15:I21) -> 95000
B25: 服务费 Service Fee | D25: 市场营销公司垫付的零星第三方支出，需要收取在实际发生基础上收取服务费的部分。请注意需要付款时提供第三方发票作为支持文件。 | H25: 0.1 | I25: =I24*H25 -> 9500
H26: 不含税总计: | I26: =I22+I25 -> 104500
G27: 税金 Tax | H27: 0.06 | I27: =I26*H27 -> 6270

Sheet Sheet3 (hidden)
B2: Plenary session | C2: Creative director
B3: Gala dinner | C3: Associate Creative Director
B4: Team Building | C4: Copywriter
B5: Closing ceremony | C5: 2D designer
B6: For all sessions | C6: Senior Project Manager
C7: Project Manager
C8: 3D designer
C9: Developer
C10: Technicals
